[Event "Titled Tuesday Blitz March 28 Late 2023"]
[White "Khandelwal, Ankush"]
[Black "Fiorito, Francisco"]
[WhiteFideId "413470"]
[BlackFideId "180165"]
[WhiteElo "2263"]
[BlackElo "2341"]
[Result "0-1"]
[Round "09"]
[TimeControl "180+2"]
[Date "2023.03.28"]
[WhiteClock "0:00:13"]
[BlackClock "0:02:20"]

1. e4 {[%clk 0:02:53]}  c5 {[%clk 0:02:59]} 2. Nf3 {[%clk 0:02:51]}  Nc6 {[%clk 0:03:00]} 3. d4 {[%clk 0:02:50]}  cxd4 {[%clk 0:03:01]} 4. Nxd4 {[%clk 0:02:51]}  g6 {[%clk 0:03:01]} 5. c4 {[%clk 0:02:36]}  Nf6 {[%clk 0:03:00]} 6. Nc3 {[%clk 0:02:32]}  d6 {[%clk 0:03:00]} 7. Be2 {[%clk 0:02:29]}  Nxd4 {[%clk 0:02:59]} 8. Qxd4 {[%clk 0:02:28]}  Bg7 {[%clk 0:03:00]} 9. Bg5 {[%clk 0:02:22]}  h6 {[%clk 0:02:56]} 10. Be3 {[%clk 0:02:18]}  O-O {[%clk 0:02:54]} 11. Qd2 {[%clk 0:02:18]}  Kh7 {[%clk 0:02:54]} 12. O-O {[%clk 0:02:17]}  a5 {[%clk 0:02:54]} 13. f4 {[%clk 0:02:04]}  a4 {[%clk 0:02:52]} 14. f5 {[%clk 0:02:02]}  Qa5 {[%clk 0:02:46]} 15. fxg6+ {[%clk 0:01:56]}  fxg6 {[%clk 0:02:47]} 16. a3 {[%clk 0:01:51]}  Be6 {[%clk 0:02:45]} 17. Rad1 {[%clk 0:01:29]}  Rac8 {[%clk 0:02:44]} 18. Nd5 {[%clk 0:01:27]}  Qxd2 {[%clk 0:02:43]} 19. Nxf6+ {[%clk 0:01:27]}  Rxf6 {[%clk 0:02:41]} 20. Rxd2 {[%clk 0:01:20]}  Rxf1+ {[%clk 0:02:39]} 21. Bxf1 {[%clk 0:01:20]}  Bxc4 {[%clk 0:02:39]} 22. Rc2 {[%clk 0:01:07]}  Be6 {[%clk 0:02:39]} 23. Rxc8 {[%clk 0:01:02]}  Bxc8 {[%clk 0:02:40]} 24. Bc1 {[%clk 0:01:01]}  Bd7 {[%clk 0:02:39]} 25. Kf2 {[%clk 0:01:01]}  Bd4+ {[%clk 0:02:38]} 26. Kf3 {[%clk 0:01:00]}  Bc6 {[%clk 0:02:38]} 27. Bc4 {[%clk 0:00:59]}  Kg7 {[%clk 0:02:37]} 28. h3 {[%clk 0:00:31]}  Kf6 {[%clk 0:02:37]} 29. h4 {[%clk 0:00:22]}  g5 {[%clk 0:02:34]} 30. hxg5+ {[%clk 0:00:20]}  hxg5 {[%clk 0:02:35]} 31. Kg4 {[%clk 0:00:21]}  Bxe4 {[%clk 0:02:34]} 32. Bxg5+ {[%clk 0:00:21]}  Ke5 {[%clk 0:02:32]} 33. Bxe7 {[%clk 0:00:22]}  Bxb2 {[%clk 0:02:31]} 34. Bb5 {[%clk 0:00:22]}  Bc6 {[%clk 0:02:29]} 35. Bxc6 {[%clk 0:00:13]}  bxc6 {[%clk 0:02:30]} 36. Kh5 {[%clk 0:00:10]}  Bxa3 {[%clk 0:02:29]} 37. g4 {[%clk 0:00:11]}  Bc1 {[%clk 0:02:30]} 38. g5 {[%clk 0:00:11]}  Bxg5 {[%clk 0:02:23]} 39. Kxg5 {[%clk 0:00:11]}  a3 {[%clk 0:02:21]} 40. Bf6+ {[%clk 0:00:12]}  Ke4 {[%clk 0:02:19]} 41. Ba1 {[%clk 0:00:11]}  d5 {[%clk 0:02:19]} 42. Kf6 {[%clk 0:00:11]}  c5 {[%clk 0:02:19]} 43. Ke6 {[%clk 0:00:11]}  d4 {[%clk 0:02:19]} 44. Kd6 {[%clk 0:00:11]}  d3 {[%clk 0:02:19]} 45. Bc3 {[%clk 0:00:11]}  a2 {[%clk 0:02:20]} 46. Kxc5 {[%clk 0:00:12]}  d2 {[%clk 0:02:20]} 47. Bxd2 {[%clk 0:00:13]}  a1=Q {[%clk 0:02:20]} 0-1


[Site "https://www.chess.com"]

[Event "Titled Tuesday Blitz March 28 Late 2023"]
[White "Gonzalez, Francisco Silva"]
[Black "Cori T., Deysi"]
[WhiteFideId "1512285"]
[BlackFideId "3801934"]
[WhiteElo "2074"]
[BlackElo "2292"]
[Result "0-1"]
[Round "09"]
[TimeControl "180+2"]
[Date "2023.03.28"]
[WhiteClock "0:00:19"]
[BlackClock "0:01:31"]

1. d4 {[%clk 0:02:52]}  c6 {[%clk 0:02:59]} 2. c4 {[%clk 0:02:50]}  g6 {[%clk 0:02:58]} 3. Nc3 {[%clk 0:02:50]}  Bg7 {[%clk 0:02:59]} 4. e4 {[%clk 0:02:48]}  d6 {[%clk 0:02:57]} 5. Be3 {[%clk 0:02:47]}  Qc7 {[%clk 0:02:54]} 6. Qd2 {[%clk 0:02:43]}  a6 {[%clk 0:02:51]} 7. Rc1 {[%clk 0:02:35]}  Nd7 {[%clk 0:02:49]} 8. h3 {[%clk 0:02:31]}  e5 {[%clk 0:02:47]} 9. d5 {[%clk 0:02:28]}  Ne7 {[%clk 0:02:46]} 10. Bd3 {[%clk 0:02:26]}  f5 {[%clk 0:02:44]} 11. f3 {[%clk 0:02:15]}  Nf6 {[%clk 0:02:36]} 12. g4 {[%clk 0:02:12]}  f4 {[%clk 0:02:28]} 13. Bf2 {[%clk 0:02:09]}  h5 {[%clk 0:02:28]} 14. g5 {[%clk 0:02:08]}  Nh7 {[%clk 0:02:28]} 15. h4 {[%clk 0:02:07]}  O-O {[%clk 0:02:28]} 16. Nge2 {[%clk 0:01:58]}  c5 {[%clk 0:02:28]} 17. Rb1 {[%clk 0:01:52]}  Bd7 {[%clk 0:02:27]} 18. Nc1 {[%clk 0:01:51]}  Rfb8 {[%clk 0:02:23]} 19. b4 {[%clk 0:01:50]}  Nc8 {[%clk 0:02:18]} 20. Bf1 {[%clk 0:01:27]}  Bf8 {[%clk 0:02:15]} 21. bxc5 {[%clk 0:01:25]}  dxc5 {[%clk 0:02:15]} 22. Nb3 {[%clk 0:01:04]}  b5 {[%clk 0:02:10]} 23. Rd1 {[%clk 0:01:00]}  Bd6 {[%clk 0:02:07]} 24. Rh2 {[%clk 0:00:54]}  Nb6 {[%clk 0:01:51]} 25. cxb5 {[%clk 0:00:51]}  c4 {[%clk 0:01:51]} 26. Na5 {[%clk 0:00:46]}  axb5 {[%clk 0:01:50]} 27. Nc6 {[%clk 0:00:45]}  Na4 {[%clk 0:01:40]} 28. Nxb5 {[%clk 0:00:27]}  Rxb5 {[%clk 0:01:35]} 29. Bxc4 {[%clk 0:00:27]}  Rb2 {[%clk 0:01:32]} 30. Qc2 {[%clk 0:00:19]}  Rxc2 {[%clk 0:01:31]} 0-1


[Site "https://www.chess.com"]

[Event "Titled Tuesday Blitz March 28 Late 2023"]
[White "ArturoCaceres"]
[Black "Santos Flores, Alberto"]
[BlackFideId "3601234"]
[WhiteElo "2391"]
[BlackElo "2235"]
[Result "1-0"]
[Round "09"]
[TimeControl "180+2"]
[Date "2023.03.28"]
[WhiteClock "0:01:15"]
[BlackClock "0:00:51"]

1. e4 {[%clk 0:03:00]}  c5 {[%clk 0:02:59]} 2. Nf3 {[%clk 0:02:44]}  Nc6 {[%clk 0:02:59]} 3. Bb5 {[%clk 0:02:39]}  g6 {[%clk 0:02:58]} 4. Bxc6 {[%clk 0:02:28]}  dxc6 {[%clk 0:02:59]} 5. O-O {[%clk 0:02:28]}  Bg4 {[%clk 0:02:58]} 6. d3 {[%clk 0:02:29]}  Bg7 {[%clk 0:02:58]} 7. h3 {[%clk 0:02:29]}  Bxf3 {[%clk 0:02:58]} 8. Qxf3 {[%clk 0:02:30]}  e5 {[%clk 0:02:58]} 9. Be3 {[%clk 0:02:29]}  b6 {[%clk 0:02:58]} 10. Nd2 {[%clk 0:02:29]}  Nf6 {[%clk 0:02:55]} 11. a4 {[%clk 0:02:29]}  a5 {[%clk 0:02:55]} 12. Nc4 {[%clk 0:02:29]}  Qc7 {[%clk 0:02:51]} 13. Qg3 {[%clk 0:02:28]}  Nd7 {[%clk 0:02:49]} 14. f4 {[%clk 0:02:29]}  O-O-O {[%clk 0:02:16]} 15. fxe5 {[%clk 0:02:23]}  Nxe5 {[%clk 0:02:16]} 16. Bf4 {[%clk 0:02:21]}  Rhe8 {[%clk 0:02:16]} 17. Bxe5 {[%clk 0:02:22]}  Bxe5 {[%clk 0:02:16]} 18. Nxe5 {[%clk 0:02:18]}  Rxe5 {[%clk 0:02:13]} 19. Rxf7 {[%clk 0:02:10]}  Qxf7 {[%clk 0:02:10]} 20. Qxe5 {[%clk 0:02:10]}  Rf8 {[%clk 0:02:11]} 21. Kh2 {[%clk 0:02:10]}  Qc7 {[%clk 0:01:44]} 22. Qxc7+ {[%clk 0:02:04]}  Kxc7 {[%clk 0:01:45]} 23. Kg1 {[%clk 0:02:04]}  c4 {[%clk 0:01:39]} 24. d4 {[%clk 0:02:02]}  Rf4 {[%clk 0:01:35]} 25. Re1 {[%clk 0:02:02]}  Kd6 {[%clk 0:01:35]} 26. g3 {[%clk 0:02:02]}  Rf8 {[%clk 0:01:33]} 27. Kg2 {[%clk 0:02:02]}  b5 {[%clk 0:01:33]} 28. axb5 {[%clk 0:02:01]}  cxb5 {[%clk 0:01:33]} 29. c3 {[%clk 0:02:02]}  b4 {[%clk 0:01:28]} 30. Ra1 {[%clk 0:02:02]}  bxc3 {[%clk 0:01:24]} 31. bxc3 {[%clk 0:02:01]}  Ra8 {[%clk 0:01:22]} 32. Ra4 {[%clk 0:02:00]}  Kc6 {[%clk 0:01:22]} 33. Rxc4+ {[%clk 0:01:58]}  Kb5 {[%clk 0:01:23]} 34. Rc5+ {[%clk 0:01:58]}  Kb6 {[%clk 0:01:23]} 35. Rc4 {[%clk 0:01:56]}  Kb5 {[%clk 0:01:20]} 36. Rc7 {[%clk 0:01:50]}  Kb6 {[%clk 0:01:15]} 37. Rf7 {[%clk 0:01:50]}  a4 {[%clk 0:01:14]} 38. Rf2 {[%clk 0:01:49]}  a3 {[%clk 0:01:14]} 39. Ra2 {[%clk 0:01:48]}  Kb5 {[%clk 0:01:15]} 40. Kf3 {[%clk 0:01:46]}  Kc4 {[%clk 0:01:15]} 41. e5 {[%clk 0:01:46]}  Kxc3 {[%clk 0:01:14]} 42. Ke4 {[%clk 0:01:45]}  Kb3 {[%clk 0:01:14]} 43. Ra1 {[%clk 0:01:45]}  a2 {[%clk 0:01:11]} 44. e6 {[%clk 0:01:43]}  Kb2 {[%clk 0:01:09]} 45. Rxa2+ {[%clk 0:01:40]}  Kxa2 {[%clk 0:01:10]} 46. d5 {[%clk 0:01:41]}  Kb3 {[%clk 0:01:10]} 47. d6 {[%clk 0:01:41]}  Kc4 {[%clk 0:01:10]} 48. d7 {[%clk 0:01:39]}  Ra6 {[%clk 0:00:55]} 49. d8=Q {[%clk 0:01:14]}  Rxe6+ {[%clk 0:00:54]} 50. Kf4 {[%clk 0:01:14]}  Rc6 {[%clk 0:00:53]} 51. Qg8+ {[%clk 0:01:14]}  Kc5 {[%clk 0:00:52]} 52. Qxh7 {[%clk 0:01:15]}  Rd6 {[%clk 0:00:51]} 53. Kg5 {[%clk 0:01:15]}  Kd5 {[%clk 0:00:51]} 54. Qxg6 {[%clk 0:01:15]} 1-0


[Site "https://www.chess.com"]

[Event "Titled Tuesday Blitz March 28 Late 2023"]
[White "Smith, Garrett L"]
[Black "Pires, Marcos Vinicius Torsani"]
[WhiteFideId "2024829"]
[BlackFideId "2118939"]
[WhiteElo "2334"]
[BlackElo "2273"]
[Result "0-1"]
[Round "09"]
[TimeControl "180+2"]
[Date "2023.03.28"]
[WhiteClock "0:00:53"]
[BlackClock "0:00:54"]

1. e4 {[%clk 0:03:00]}  c5 {[%clk 0:02:58]} 2. a3 {[%clk 0:03:01]}  g6 {[%clk 0:02:52]} 3. b4 {[%clk 0:03:01]}  Bg7 {[%clk 0:02:52]} 4. Nc3 {[%clk 0:03:01]}  b6 {[%clk 0:02:48]} 5. bxc5 {[%clk 0:03:00]}  bxc5 {[%clk 0:02:48]} 6. Rb1 {[%clk 0:03:00]}  Nc6 {[%clk 0:02:45]} 7. Nf3 {[%clk 0:03:00]}  Nf6 {[%clk 0:02:43]} 8. Bc4 {[%clk 0:02:59]}  O-O {[%clk 0:02:42]} 9. O-O {[%clk 0:02:58]}  d6 {[%clk 0:02:42]} 10. d3 {[%clk 0:02:55]}  Bg4 {[%clk 0:02:41]} 11. h3 {[%clk 0:02:33]}  Bxf3 {[%clk 0:02:35]} 12. Qxf3 {[%clk 0:02:34]}  Ne5 {[%clk 0:02:33]} 13. Qe2 {[%clk 0:02:32]}  Nxc4 {[%clk 0:02:33]} 14. dxc4 {[%clk 0:02:31]}  Rb8 {[%clk 0:02:25]} 15. Rb3 {[%clk 0:02:24]}  Qa5 {[%clk 0:02:20]} 16. Nd5 {[%clk 0:02:20]}  Nxd5 {[%clk 0:01:58]} 17. exd5 {[%clk 0:02:21]}  Bf6 {[%clk 0:01:55]} 18. g4 {[%clk 0:02:18]}  Rxb3 {[%clk 0:01:52]} 19. cxb3 {[%clk 0:02:17]}  Qc3 {[%clk 0:01:53]} 20. Qe3 {[%clk 0:02:07]}  Rb8 {[%clk 0:01:43]} 21. g5 {[%clk 0:01:49]}  Be5 {[%clk 0:01:34]} 22. Re1 {[%clk 0:01:20]}  Qxb3 {[%clk 0:01:14]} 23. Kg2 {[%clk 0:00:57]}  Qxc4 {[%clk 0:01:10]} 24. f4 {[%clk 0:00:58]}  Qxd5+ {[%clk 0:01:09]} 25. Kh2 {[%clk 0:00:53]}  Bb2 {[%clk 0:00:54]} 0-1


[Site "https://www.chess.com"]

[Event "Titled Tuesday Blitz March 28 Late 2023"]
[White "Napoli, Nicolo"]
[Black "koncheto"]
[WhiteFideId "813702"]
[WhiteElo "2308"]
[BlackElo "2474"]
[Result "0-1"]
[Round "09"]
[TimeControl "180+2"]
[Date "2023.03.28"]
[WhiteClock "0:01:28"]
[BlackClock "0:00:17"]

1. e4 {[%clk 0:02:40]}  e5 {[%clk 0:02:57]} 2. d4 {[%clk 0:02:40]}  exd4 {[%clk 0:02:53]} 3. Qxd4 {[%clk 0:02:41]}  Nc6 {[%clk 0:02:52]} 4. Qe3 {[%clk 0:02:42]}  Nf6 {[%clk 0:02:50]} 5. Nc3 {[%clk 0:02:43]}  Bb4 {[%clk 0:02:51]} 6. Bd2 {[%clk 0:02:43]}  O-O {[%clk 0:02:51]} 7. O-O-O {[%clk 0:02:44]}  Re8 {[%clk 0:02:50]} 8. Qg3 {[%clk 0:02:43]}  d6 {[%clk 0:02:13]} 9. f3 {[%clk 0:02:37]}  Be6 {[%clk 0:02:06]} 10. Nh3 {[%clk 0:02:35]}  a5 {[%clk 0:01:53]} 11. Ng5 {[%clk 0:02:35]}  a4 {[%clk 0:01:50]} 12. a3 {[%clk 0:02:34]}  Bc5 {[%clk 0:01:50]} 13. Nxe6 {[%clk 0:02:32]}  fxe6 {[%clk 0:01:50]} 14. h4 {[%clk 0:02:25]}  d5 {[%clk 0:01:41]} 15. Bh6 {[%clk 0:02:21]}  Qe7 {[%clk 0:01:29]} 16. exd5 {[%clk 0:02:16]}  exd5 {[%clk 0:01:16]} 17. Nxd5 {[%clk 0:02:17]}  Nxd5 {[%clk 0:00:37]} 18. Bc4 {[%clk 0:02:17]}  Kh8 {[%clk 0:00:30]} 19. Bg5 {[%clk 0:02:10]}  Nf6 {[%clk 0:00:30]} 20. h5 {[%clk 0:02:02]}  h6 {[%clk 0:00:20]} 21. Bf4 {[%clk 0:01:52]}  Bxa3 {[%clk 0:00:17]} 22. bxa3 {[%clk 0:01:33]}  Qxa3+ {[%clk 0:00:17]} 23. Kd2 {[%clk 0:01:33]}  Qb4+ {[%clk 0:00:17]} 24. Kc1 {[%clk 0:01:28]}  Qxc4 {[%clk 0:00:17]} 0-1


[Site "https://www.chess.com"]

[Event "Titled Tuesday Blitz March 28 Late 2023"]
[White "Jorajuria Mendoza, Algol"]
[Black "Mazurkiewicz, Michal"]
[WhiteFideId "5128897"]
[BlackFideId "1124943"]
[WhiteElo "2076"]
[BlackElo "2054"]
[Result "0-1"]
[Round "09"]
[TimeControl "180+2"]
[Date "2023.03.28"]
[WhiteClock "0:00:14"]
[BlackClock "0:01:06"]

1. e4 {[%clk 0:02:58]}  d6 {[%clk 0:02:59]} 2. d4 {[%clk 0:02:57]}  Nf6 {[%clk 0:03:00]} 3. Nc3 {[%clk 0:02:58]}  c6 {[%clk 0:02:53]} 4. Be3 {[%clk 0:02:39]}  e5 {[%clk 0:02:53]} 5. dxe5 {[%clk 0:02:27]}  dxe5 {[%clk 0:02:54]} 6. Qxd8+ {[%clk 0:02:27]}  Kxd8 {[%clk 0:02:55]} 7. f3 {[%clk 0:02:23]}  Be6 {[%clk 0:02:55]} 8. a4 {[%clk 0:02:17]}  Nbd7 {[%clk 0:02:54]} 9. a5 {[%clk 0:02:00]}  Kc7 {[%clk 0:02:52]} 10. Nge2 {[%clk 0:01:57]}  Bc5 {[%clk 0:02:52]} 11. Kf2 {[%clk 0:01:57]}  b6 {[%clk 0:02:32]} 12. Nc1 {[%clk 0:01:53]}  b5 {[%clk 0:02:30]} 13. Nd3 {[%clk 0:01:44]}  Bxe3+ {[%clk 0:02:27]} 14. Kxe3 {[%clk 0:01:45]}  Ne8 {[%clk 0:02:26]} 15. h4 {[%clk 0:01:34]}  Nd6 {[%clk 0:02:26]} 16. b3 {[%clk 0:01:33]}  f5 {[%clk 0:02:26]} 17. exf5 {[%clk 0:01:27]}  Nxf5+ {[%clk 0:02:25]} 18. Kf2 {[%clk 0:01:27]}  Nd4 {[%clk 0:02:25]} 19. Rc1 {[%clk 0:01:16]}  Rhf8 {[%clk 0:02:09]} 20. Ne4 {[%clk 0:01:13]}  Bd5 {[%clk 0:02:09]} 21. Ndc5 {[%clk 0:01:08]}  Nxc5 {[%clk 0:02:05]} 22. Nxc5 {[%clk 0:01:09]}  Kd6 {[%clk 0:01:59]} 23. b4 {[%clk 0:01:01]}  e4 {[%clk 0:01:50]} 24. c3 {[%clk 0:00:29]}  exf3 {[%clk 0:01:48]} 25. gxf3 {[%clk 0:00:29]}  Nxf3 {[%clk 0:01:31]} 26. Kg3 {[%clk 0:00:28]}  Rae8 {[%clk 0:01:06]} 27. Bg2 {[%clk 0:00:15]}  Re3 {[%clk 0:01:06]} 28. Bxf3 {[%clk 0:00:14]} 0-1


[Site "https://www.chess.com"]

[Event "Titled Tuesday Blitz March 28 Late 2023"]
[White "Torres Boch, Jose Francisco"]
[Black "Vivas Zamora, Fabian Ernesto"]
[WhiteFideId "2278383"]
[BlackFideId "3902480"]
[WhiteElo "2073"]
[BlackElo "2262"]
[Result "0-1"]
[Round "09"]
[TimeControl "180+2"]
[Date "2023.03.28"]
[WhiteClock "0:00:01"]
[BlackClock "0:00:03"]

1. e4 {[%clk 0:02:18]}  e5 {[%clk 0:02:57]} 2. Nf3 {[%clk 0:02:18]}  Nc6 {[%clk 0:02:57]} 3. Bb5 {[%clk 0:02:18]}  Nf6 {[%clk 0:02:56]} 4. d3 {[%clk 0:02:16]}  Bc5 {[%clk 0:02:56]} 5. Bxc6 {[%clk 0:02:15]}  dxc6 {[%clk 0:02:57]} 6. Nbd2 {[%clk 0:02:15]}  Be6 {[%clk 0:02:44]} 7. O-O {[%clk 0:02:10]}  Nd7 {[%clk 0:02:39]} 8. Nc4 {[%clk 0:02:08]}  f6 {[%clk 0:02:30]} 9. Be3 {[%clk 0:02:07]}  Bxc4 {[%clk 0:02:24]} 10. dxc4 {[%clk 0:02:01]}  Bxe3 {[%clk 0:02:23]} 11. fxe3 {[%clk 0:02:02]}  Nc5 {[%clk 0:02:23]} 12. Qe2 {[%clk 0:01:42]}  Nxe4 {[%clk 0:02:23]} 13. Nxe5 {[%clk 0:01:38]}  O-O {[%clk 0:01:52]} 14. Qg4 {[%clk 0:01:37]}  Re8 {[%clk 0:01:26]} 15. Qxe4 {[%clk 0:01:24]}  Rxe5 {[%clk 0:01:25]} 16. Qf4 {[%clk 0:01:24]}  Qd2 {[%clk 0:01:22]} 17. Rad1 {[%clk 0:01:11]}  Qxe3+ {[%clk 0:01:19]} 18. Qxe3 {[%clk 0:01:10]}  Rxe3 {[%clk 0:01:20]} 19. Rd7 {[%clk 0:01:11]}  Rc8 {[%clk 0:01:19]} 20. Rfd1 {[%clk 0:01:08]}  Re2 {[%clk 0:01:19]} 21. Kf1 {[%clk 0:00:53]}  Rxc2 {[%clk 0:01:16]} 22. Re7 {[%clk 0:00:52]}  Rxc4 {[%clk 0:01:12]} 23. h3 {[%clk 0:00:41]}  Rc5 {[%clk 0:00:58]} 24. Rdd7 {[%clk 0:00:38]}  Rg5 {[%clk 0:00:58]} 25. Kf2 {[%clk 0:00:37]}  h5 {[%clk 0:00:55]} 26. Kf3 {[%clk 0:00:35]}  h4 {[%clk 0:00:54]} 27. Kf2 {[%clk 0:00:20]}  a5 {[%clk 0:00:54]} 28. a3 {[%clk 0:00:18]}  a4 {[%clk 0:00:53]} 29. Rd4 {[%clk 0:00:16]}  Kf8 {[%clk 0:00:47]} 30. Rdd7 {[%clk 0:00:16]}  Kg8 {[%clk 0:00:46]} 31. Re4 {[%clk 0:00:15]}  Rf5+ {[%clk 0:00:32]} 32. Kg1 {[%clk 0:00:15]}  Rb5 {[%clk 0:00:32]} 33. Rg4 {[%clk 0:00:14]}  g5 {[%clk 0:00:27]} 34. Re4 {[%clk 0:00:15]}  Re5 {[%clk 0:00:26]} 35. Rb4 {[%clk 0:00:14]}  b5 {[%clk 0:00:24]} 36. Rbd4 {[%clk 0:00:12]}  c5 {[%clk 0:00:20]} 37. Rd3 {[%clk 0:00:11]}  b4 {[%clk 0:00:20]} 38. Kf2 {[%clk 0:00:08]}  c4 {[%clk 0:00:18]} 39. R3d4 {[%clk 0:00:07]}  c3 {[%clk 0:00:15]} 40. Rxb4 {[%clk 0:00:07]}  cxb2 {[%clk 0:00:13]} 41. Rxb2 {[%clk 0:00:08]}  Kf8 {[%clk 0:00:10]} 42. Rb4 {[%clk 0:00:07]}  Re7 {[%clk 0:00:03]} 43. Rd5 {[%clk 0:00:05]}  Ra8 {[%clk 0:00:03]} 44. Rf5 {[%clk 0:00:05]}  Ra6 {[%clk 0:00:03]} 45. Rc5 {[%clk 0:00:03]}  Kf7 {[%clk 0:00:02]} 46. Rbc4 {[%clk 0:00:03]}  Kg6 {[%clk 0:00:03]} 47. Rxc7 {[%clk 0:00:03]}  Rxc7 {[%clk 0:00:03]} 48. Rxc7 {[%clk 0:00:03]}  Rb6 {[%clk 0:00:03]} 49. Rc4 {[%clk 0:00:04]}  Ra6 {[%clk 0:00:02]} 50. Rb4 {[%clk 0:00:03]}  Kf5 {[%clk 0:00:03]} 51. Kf3 {[%clk 0:00:04]}  Kg6 {[%clk 0:00:03]} 52. Rc4 {[%clk 0:00:04]}  Kf5 {[%clk 0:00:03]} 53. Rb4 {[%clk 0:00:04]}  Ke5 {[%clk 0:00:03]} 54. Kg4 {[%clk 0:00:01]}  Ra5 {[%clk 0:00:03]} 0-1


[Site "https://www.chess.com"]

[Event "Titled Tuesday Blitz March 28 Late 2023"]
[White "Hoffmann, Asa"]
[Black "Skibbe, Willi"]
[WhiteFideId "2001470"]
[BlackFideId "4682190"]
[WhiteElo "2117"]
[BlackElo "2318"]
[Result "1-0"]
[Round "09"]
[TimeControl "180+2"]
[Date "2023.03.28"]
[WhiteClock "0:00:31"]
[BlackClock "0:01:13"]

1. d4 {[%clk 0:02:59]}  d5 {[%clk 0:02:57]} 2. Bg5 {[%clk 0:02:58]}  h6 {[%clk 0:02:56]} 3. Bh4 {[%clk 0:02:58]}  c5 {[%clk 0:02:57]} 4. e3 {[%clk 0:02:57]}  cxd4 {[%clk 0:02:57]} 5. exd4 {[%clk 0:02:57]}  Nc6 {[%clk 0:02:58]} 6. c3 {[%clk 0:02:57]}  Bf5 {[%clk 0:02:58]} 7. Bd3 {[%clk 0:02:57]}  Bxd3 {[%clk 0:02:56]} 8. Qxd3 {[%clk 0:02:57]}  Qb6 {[%clk 0:02:57]} 9. b3 {[%clk 0:02:54]}  e6 {[%clk 0:02:57]} 10. Nd2 {[%clk 0:02:53]}  Bd6 {[%clk 0:02:57]} 11. Ngf3 {[%clk 0:02:53]}  Nge7 {[%clk 0:02:57]} 12. O-O {[%clk 0:02:52]}  Nf5 {[%clk 0:02:55]} 13. Bg3 {[%clk 0:02:48]}  Nxg3 {[%clk 0:02:55]} 14. hxg3 {[%clk 0:02:47]}  O-O {[%clk 0:02:56]} 15. Rfe1 {[%clk 0:02:47]}  Qc7 {[%clk 0:02:56]} 16. Rac1 {[%clk 0:02:44]}  Rac8 {[%clk 0:02:54]} 17. c4 {[%clk 0:02:44]}  Ba3 {[%clk 0:02:54]} 18. Rcd1 {[%clk 0:02:40]}  Nb4 {[%clk 0:02:53]} 19. Qb1 {[%clk 0:02:38]}  dxc4 {[%clk 0:02:50]} 20. bxc4 {[%clk 0:02:32]}  Nc6 {[%clk 0:02:47]} 21. Re3 {[%clk 0:02:19]}  Be7 {[%clk 0:02:42]} 22. d5 {[%clk 0:02:17]}  exd5 {[%clk 0:02:38]} 23. cxd5 {[%clk 0:02:17]}  Nb4 {[%clk 0:02:36]} 24. Ne4 {[%clk 0:02:13]}  Rfd8 {[%clk 0:02:23]} 25. Qb3 {[%clk 0:01:49]}  Qc2 {[%clk 0:02:08]} 26. d6 {[%clk 0:01:43]}  Bf8 {[%clk 0:01:59]} 27. Ne5 {[%clk 0:01:30]}  Qxb3 {[%clk 0:01:54]} 28. Rxb3 {[%clk 0:01:27]}  a5 {[%clk 0:01:49]} 29. a3 {[%clk 0:01:26]}  Nc6 {[%clk 0:01:47]} 30. Nxc6 {[%clk 0:01:19]}  bxc6 {[%clk 0:01:48]} 31. Rb7 {[%clk 0:01:11]}  f5 {[%clk 0:01:45]} 32. d7 {[%clk 0:01:09]}  Ra8 {[%clk 0:01:39]} 33. Nd2 {[%clk 0:01:04]}  Bxa3 {[%clk 0:01:37]} 34. Nc4 {[%clk 0:01:04]}  Be7 {[%clk 0:01:34]} 35. Ne5 {[%clk 0:01:02]}  Ra6 {[%clk 0:01:31]} 36. Rc7 {[%clk 0:00:59]}  Bf6 {[%clk 0:01:30]} 37. Nxc6 {[%clk 0:00:59]}  Rxc6 {[%clk 0:01:25]} 38. Rxc6 {[%clk 0:00:57]}  Kf7 {[%clk 0:01:23]} 39. Ra6 {[%clk 0:00:51]}  Bc3 {[%clk 0:01:22]} 40. Rd5 {[%clk 0:00:49]}  g6 {[%clk 0:01:21]} 41. f4 {[%clk 0:00:49]}  Ke7 {[%clk 0:01:20]} 42. Rxg6 {[%clk 0:00:42]}  Rxd7 {[%clk 0:01:17]} 43. Rxd7+ {[%clk 0:00:40]}  Kxd7 {[%clk 0:01:18]} 44. Rxh6 {[%clk 0:00:40]}  Kc7 {[%clk 0:01:18]} 45. Re6 {[%clk 0:00:36]}  Kd7 {[%clk 0:01:17]} 46. Re2 {[%clk 0:00:35]}  a4 {[%clk 0:01:16]} 47. Ra2 {[%clk 0:00:34]}  Be1 {[%clk 0:01:13]} 48. Kh2 {[%clk 0:00:31]} 1-0


[Site "https://www.chess.com"]